[Event "Commonwealth CC-Open 2024"]
[Site "Malacca"]
[Date "2024.02.26"]
[Round "8.12"]
[White "Mahmood Shah, Mukhriez Shah"]
[Black "Liu, Yi"]
[Result "0-1"]
[ECO "C11"]
[WhiteElo "2007"]
[BlackElo "2260"]
[Annotator "RC"]
[PlyCount "62"]
[EventDate "2024.02.21"]
[EventCountry "MAS"]
[SourceTitle "playchess.com"]
[Source "ChessBase"]
[SourceQuality "1"]
[TimeControl "5400+30"]

1. e4 e6 2. d4 d5 3. Nc3 Nf6 4. e5 Nfd7 5. f4 c5 6. Nf3 Nc6 7. Be3 cxd4 8. Nxd4 Qb6 9. Qd2 Qxb2 10. Rb1 Qa3 11. Rb3 Qa5 12. Ncb5 Qxd2+ 13. Kxd2 Rb8 14. Nxc6 bxc6 15. Nxa7 Rxb3 16. axb3 Bb7 17. Be2 Kd8 18. c4 Bb4+ 19. Kd3 Nc5+ 20. Kc2 Kc7 21. cxd5 exd5 22. Rd1 Ra8 23. Rd4 Ba3 24. b4 Ne6 25. Rd1 Bxb4 26. f5 Bc5 27. fxe6 Bxe3 28. exf7 Bxa7 29. e6 Bc5 30. Rb1 Ra2+ 31. Kd1 {[%emt 0:47:23]} Bc8 {[%emt 0:33:59]} 0-1

[Event "Commonwealth CC-Open 2024"]
[Site "Malacca"]
[Date "2024.02.26"]
[Round "8.13"]
[White "Chong, Jin Cheng"]
[Black "Lim, Zhuo Ren"]
[Result "1-0"]
[ECO "B96"]
[WhiteElo "1706"]
[BlackElo "2218"]
[Annotator "RC"]
[PlyCount "83"]
[EventDate "2024.02.21"]
[EventCountry "MAS"]
[SourceTitle "playchess.com"]
[Source "ChessBase"]
[SourceQuality "1"]
[TimeControl "5400+30"]

1. e4 c5 2. Nf3 d6 3. d4 cxd4 4. Nxd4 Nf6 5. Nc3 a6 6. Bg5 e6 7. f4 b5 8. e5 dxe5 9. fxe5 Qc7 10. Qe2 Nfd7 11. O-O-O Nc6 12. Kb1 Nxd4 13. Rxd4 Bb7 14. Bf4 Rc8 15. Ne4 Bxe4 16. Qxe4 Be7 17. h4 Nc5 18. Qf3 O-O 19. Be2 Rfd8 20. c3 Na4 21. Bd3 Bf8 22. h5 Nc5 23. Bc2 a5 24. Rhd1 b4 25. Bg5 Re8 26. Rg4 bxc3 27. Bf6 Qb7 28. Qxc3 g6 29. hxg6 fxg6 30. Qg3 Re7 31. Rh1 Rg7 32. Bxg7 Bxg7 33. Rgh4 Rb8 34. b3 a4 35. Rxh7 axb3 36. axb3 Nxb3 37. Rxg7+ Qxg7 38. Bxb3 Qf7 39. Qh3 Kf8 40. Qh8+ Qg8 41. Qf6+ Ke8 {[%emt 1:51:00]} 42. Rh8 {[%emt 1:41:04]} 1-0

[Event "Commonwealth CC-Open 2024"]
[Site "Malacca"]
[Date "2024.02.26"]
[Round "8.15"]
[White "Pon, Matt"]
[Black "Kavin Mohan"]
[Result "1/2-1/2"]
[ECO "C00"]
[WhiteElo "2202"]
[BlackElo "1803"]
[Annotator "RC"]
[PlyCount "77"]
[EventDate "2024.02.21"]
[EventCountry "MAS"]
[SourceTitle "playchess.com"]
[Source "ChessBase"]
[SourceQuality "1"]
[TimeControl "5400+30"]

1. e4 e6 2. d3 d5 3. Nd2 c5 4. Ngf3 Nf6 5. g3 Nc6 6. Bg2 Be7 7. O-O b6 8. Re1 Bb7 9. c3 Qc7 10. Qe2 O-O-O 11. Nf1 Ba6 12. Bf4 Qb7 13. e5 Nd7 14. c4 Nf8 15. Ng5 Bxg5 16. Bxg5 Rd7 17. h4 h6 18. Bf4 Ng6 19. cxd5 Nxf4 20. gxf4 exd5 21. Qg4 Nd4 22. Ne3 Kb8 23. b4 Bxd3 24. bxc5 Be4 25. cxb6 axb6 26. Red1 f5 27. exf6 gxf6 28. Rxd4 Rg7 29. Qe6 Bxg2 30. Qd6+ Qc7 31. Qxc7+ Kxc7 32. Rc1+ Kb7 33. Kh2 Be4 34. Rf1 Ra8 35. a4 Rag8 36. f3 Rg3 37. fxe4 Rxe3 38. exd5 Re2+ {[%emt 1:14:21]} 39. Kh1 {[%emt 1:45:20]} 1/2-1/2

[Event "Commonwealth CC-Open 2024"]
[Site "Malacca"]
[Date "2024.02.26"]
[Round "8.17"]
[White "Vrashank Chouhan"]
[Black "Kapoor, Satvik"]
[Result "1/2-1/2"]
[ECO "A90"]
[WhiteElo "2046"]
[BlackElo "1791"]
[Annotator "NA RC"]
[PlyCount "71"]
[EventDate "2024.02.21"]
[EventCountry "MAS"]
[SourceTitle "playchess.com"]
[Source "ChessBase"]
[SourceQuality "1"]
[TimeControl "5400+30"]

1. d4 {[%emt 0:00:10]} f5 {[%emt 0:00:03]} 2. Nf3 {[%emt 0:02:02]} Nf6 {[%emt 0:00:15]} 3. g3 {[%emt 0:00:29]} d5 4. Bg2 {[%emt 0:02:13]} e6 {[%emt 0:00:33]} 5. O-O {[%emt 0:02:19]} Bd6 {[%emt 0:00:59]} 6. c4 {[%emt 0:02:46]} c6 {[%emt 0:01:03]} 7. b3 {[%emt 0:07:24]} O-O {[%emt 0:01:08]} 8. Bb2 {[%emt 0:15:06]} b5 {[%emt 0:03:05]} 9. Ne5 {[%emt 0:26:07]} Qc7 {[%emt 0:11:30]} (9... Bb7 $11) 10. Nd2 $11 {[%emt 0:32:14]} (10. c5 $16 Be7 11. b4) 10... a5 11. Rc1 Qe7 12. f3 Bb7 13. e4 bxc4 14. exd5 c3 15. Bxc3 Nxd5 16. Ndc4 Nd7 17. Nxd6 Qxd6 18. Nc4 Qc7 19. Qe1 Rfe8 20. Bxa5 Qb8 21. f4 c5 22. Qd2 Qa7 23. Rfd1 N7f6 24. Nd6 Qxa5 25. Nxe8 Nxe8 26. Qxa5 Rxa5 27. dxc5 Rxa2 28. c6 Bxc6 29. Rxc6 Ne3 30. Rxe6 Nxd1 31. Rxe8+ Kf7 32. Rd8 Ra1 33. Bf3 Ne3+ 34. Kf2 Ng4+ 35. Bxg4 fxg4 {[%emt 1:37:22]} 36. Rd2 {[%emt 1:48:30]} 1/2-1/2

[Event "Commonwealth CC-Open 2024"]
[Site "Malacca"]
[Date "2024.02.26"]
[Round "8.18"]
[White "Sanudula, K M Dahamdi"]
[Black "Anderson, Gavin"]
[Result "1/2-1/2"]
[ECO "A45"]
[WhiteElo "1744"]
[BlackElo "2159"]
[Annotator "RC"]
[PlyCount "31"]
[EventDate "2024.02.21"]
[EventCountry "MAS"]
[SourceTitle "playchess.com"]
[Source "ChessBase"]
[SourceQuality "1"]
[TimeControl "5400+30"]

1. d4 Nf6 2. Bf4 g6 3. Nc3 d5 4. e3 Bg7 5. Nb5 Na6 6. Nc3 c5 7. Bxa6 bxa6 8. dxc5 Qa5 9. Qd4 O-O 10. Be5 Bf5 11. b4 Qa3 12. Nge2 Rfc8 13. Nb1 Qa4 14. Nbc3 Qa3 15. Nb1 Qa4 {[%emt 1:04:43]} 16. Nbc3 {[%emt 0:39:52]} 1/2-1/2

[Event "Commonwealth CC-Open 2024"]
[Site "Malacca"]
[Date "2024.02.26"]
[Round "8.19"]
[White "Siddharth, Sai"]
[Black "Chan, Peng Kong"]
[Result "1/2-1/2"]
[ECO "B06"]
[WhiteElo "1760"]
[BlackElo "2125"]
[Annotator "ChessBase"]
[PlyCount "51"]
[EventDate "2024.02.21"]
[EventCountry "MAS"]
[SourceTitle "playchess.com"]
[Source "ChessBase"]
[SourceQuality "1"]
[TimeControl "5400+30"]

1. e4 g6 2. d4 Bg7 3. Nc3 d6 4. Nf3 a6 5. Be3 b5 6. Bd3 Bb7 7. Ne2 Nd7 8. O-O Ngf6 9. Ng3 O-O 10. Re1 c5 11. c3 Rc8 12. Rc1 cxd4 13. cxd4 Rxc1 14. Qxc1 Qa5 15. a3 Rc8 16. Qd2 Qd8 17. h3 Nb6 18. b3 Nbd7 19. Rc1 Rc7 20. Rxc7 Qxc7 21. Qc1 Qxc1+ 22. Bxc1 e5 23. dxe5 Nxe5 24. Nxe5 dxe5 25. Be3 Bf8 {[%emt 1:13:20]} 26. b4 {[%emt 1:04:29]} 1/2-1/2

[Event "Commonwealth CC-Open 2024"]
[Site "Malacca"]
[Date "2024.02.26"]
[Round "8.20"]
[White "Muhammed, Shuaau"]
[Black "Wijesuriya, G P Y"]
[Result "0-1"]
[ECO "C45"]
[WhiteElo "2093"]
[BlackElo "1616"]
[Annotator "RC"]
[PlyCount "65"]
[EventDate "2024.02.21"]
[EventCountry "MAS"]
[SourceTitle "playchess.com"]
[Source "ChessBase"]
[SourceQuality "1"]
[TimeControl "5400+30"]

1. e4 e5 2. Nf3 Nc6 3. d4 exd4 4. Nxd4 Nf6 5. Nxc6 bxc6 6. e5 Nd5 7. c4 Ne7 8. Bd3 Ng6 9. O-O Bc5 10. Kh1 O-O 11. f4 d6 12. exd6 cxd6 13. Nc3 Re8 14. Ne4 Bd4 15. Bc2 c5 16. Qh5 Qh4 17. Qxh4 Nxh4 18. Nxd6 Bd7 19. Nb5 Bc6 20. Nxd4 Bxg2+ 21. Kg1 Bxf1 22. Nb5 Bxc4 23. Na3 Ba6 24. Kf2 Re2+ 25. Kg3 Ng6 26. Bd1 Re1 27. Bf3 Rd8 28. Nc2 Rg1+ 29. Kf2 Rf1+ 30. Kg2 Nh4+ 31. Kg3 Nxf3 32. Ne3 Re1 {[%emt 1:21:46]} 33. Kxf3 {[%emt 0:51:27]} 0-1

[Event "Commonwealth CC-Open 2024"]
[Site "Malacca"]
[Date "2024.02.26"]
[Round "8.22"]
[White "AH KYE, Benitot"]
[Black "Khandhar, Kaushal"]
[Result "1-0"]
[ECO "B15"]
[WhiteElo "1708"]
[BlackElo "1840"]
[Annotator "NA RC"]
[PlyCount "59"]
[EventDate "2024.02.21"]
[EventCountry "MAS"]
[SourceTitle "playchess.com"]
[Source "ChessBase"]
[SourceQuality "1"]
[TimeControl "5400+30"]

1. e4 {[%emt 0:00:10]} c6 {[%emt 0:00:04]} 2. d4 d5 {[%emt 0:00:06]} 3. Nc3 {[%emt 0:00:27]} dxe4 {[%emt 0:00:16]} 4. Nxe4 {[%emt 0:00:33]} Nf6 {[%emt 0:00:25]} 5. Nxf6+ {[%emt 0:00:49]} exf6 {[%emt 0:00:30]} 6. c3 {[%emt 0:01:01]} Bd6 {[%emt 0:00:37]} 7. Bd3 O-O {[%emt 0:00:39]} 8. Qc2 {[%emt 0:01:22]} Re8+ {[%emt 0:00:49] B15: Caro-Kann: 3 Nc3: 3...g6 and 3...dxe4 4 Nxe4 Nf6 5 Nxf6+ exf6.} 9. Ne2 h5 {[%emt 0:00:57]} 10. Be3 {[%emt 0:01:32]} Nd7 {[%emt 0:01:12]} 11. O-O-O {[%emt 0:02:02]} Nf8 {[%emt 0:01:58] 11...b5 might become the main line.} 12. h3 {[%emt 0:02:49]} Be6 {[%emt 0:04:06]} 13. c4 Qa5 14. Kb1 b5 $146 ({Predecessor:} 14... Rac8 15. Bd2 Bb4 16. Nf4 Bxd2 17. Rxd2 Qg5 18. g3 h4 19. Rg1 b5 20. Rdd1 Bxc4 21. Bxc4 bxc4 22. Qxc4 hxg3 23. fxg3 {0-1 Sosovickova,J (2022)-Bratovic,B (2326) Pula op 35th 2023 (2)}) 15. Bd2 Qa6 16. d5 cxd5 {[%emt 0:14:54]} 17. cxb5 {[%emt 0:16:19]} Qb7 $1 18. Nd4 {[%emt 0:18:16]} Rec8 {[%emt 0:18:48]} 19. Qb3 $11 {[%emt 0:20:19]} Nd7 20. Bf5 Nc5 21. Qf3 Be5 22. Be3 a6 23. Nxe6 fxe6 24. Bxc5 exf5 25. Qxd5+ Qxd5 26. Rxd5 axb5 27. Bb4 Rab8 28. f4 Bxf4 29. Rxf5 Rc4 {[%emt 1:09:02]} 30. Rxf4 {[%emt 0:54:59]} 1-0

[Event "Commonwealth CC-Open 2024"]
[Site "Malacca"]
[Date "2024.02.26"]
[Round "8.24"]
[White "Gomes, Mary Ann"]
[Black "Aminuddin, Muhd Faqih"]
[Result "1-0"]
[ECO "A34"]
[WhiteElo "2332"]
[BlackElo "1753"]
[Annotator "RC"]
[PlyCount "113"]
[EventDate "2024.02.21"]
[EventCountry "MAS"]
[SourceTitle "playchess.com"]
[Source "ChessBase"]
[SourceQuality "1"]
[TimeControl "5400+30"]

1. c4 Nf6 2. Nf3 c5 3. g3 Nc6 4. Bg2 d5 5. cxd5 Nxd5 6. Nc3 Nc7 7. O-O e5 8. d3 Be7 9. Nd2 O-O 10. Nc4 Bd7 11. a4 f6 12. f4 Rb8 13. fxe5 fxe5 14. Be3 Qe8 15. Nb5 Ne6 16. Nbd6 Qh5 17. Bf3 Qh3 18. Ne4 Ned4 19. Bxd4 exd4 20. Qd2 Qf5 21. Rf2 Ne5 22. Nxe5 Qxe5 23. Qa5 Bc6 24. Raf1 a6 25. Kg2 Rf5 26. Qb6 Rbf8 27. Nd2 Bxf3+ 28. exf3 Qd5 29. Ne4 Bd8 30. Qd6 Qxd6 31. Nxd6 Rd5 32. Ne4 b5 33. axb5 axb5 34. Rc1 Bb6 35. Rfc2 Rc8 36. b3 Ra8 37. Nxc5 Bxc5 38. Rxc5 Rxc5 39. Rxc5 Ra2+ 40. Kh3 Rd2 41. Rxb5 Rxd3 42. Kg4 Rd2 43. h4 Rb2 44. Kf4 d3 45. Ke3 d2 46. Ke2 Kf7 47. g4 h6 48. Kd1 Kf6 49. f4 Kf7 50. h5 Kf6 51. Rb6+ Kf7 52. g5 Ke7 53. g6 Kf8 54. Rb7 Ra2 55. b4 Rb2 56. b5 Rb4 {[%emt 1:44:52]} 57. b6 {[%emt 1:55:01]} 1-0

[Event "Commonwealth CC-Open 2024"]
[Site "Malacca"]
[Date "2024.02.26"]
[Round "8.25"]
[White "Muraley, Rittesh"]
[Black "Smith, Robert W"]
[Result "0-1"]
[ECO "E60"]
[WhiteElo "1663"]
[BlackElo "2152"]
[Annotator "RC"]
[PlyCount "62"]
[EventDate "2024.02.21"]
[EventCountry "MAS"]
[SourceTitle "playchess.com"]
[Source "ChessBase"]
[SourceQuality "1"]
[TimeControl "5400+30"]

1. d4 Nf6 2. Nf3 g6 3. b4 Bg7 4. c4 d6 5. e3 O-O 6. Be2 Nbd7 7. O-O e5 8. Bb2 e4 9. Nfd2 Re8 10. Nc3 Nf8 11. Qb3 h5 12. Rac1 h4 13. Rfd1 h3 14. g3 N8h7 15. d5 Ng5 16. c5 Bg4 17. cxd6 cxd6 18. Bxg4 Nxg4 19. Nb5 Qd7 20. Bxg7 Qxb5 21. Qc4 Qxc4 22. Rxc4 Kxg7 23. Rc7 Rab8 24. Rd7 Red8 25. Re7 Kf8 26. Rc7 Rdc8 27. Rdc1 Rxc7 28. Rxc7 Nf6 29. Rc4 Re8 30. a3 Re5 31. Rc8+ {[%emt 1:37:38]} Kg7 {[%emt 1:26:51]} 0-1

[Event "Commonwealth CC-Open 2024"]
[Site "Malacca"]
[Date "2024.02.26"]
[Round "8.26"]
[White "Sabri, Mohd Saprin"]
[Black "M Mohd Nur, Megat Muhd Irfan"]
[Result "0-1"]
[ECO "A11"]
[WhiteElo "1922"]
[BlackElo "1601"]
[Annotator "RC"]
[PlyCount "80"]
[EventDate "2024.02.21"]
[EventCountry "MAS"]
[SourceTitle "playchess.com"]
[Source "ChessBase"]
[SourceQuality "1"]
[TimeControl "5400+30"]

1. Nf3 d5 2. c4 c6 3. e3 Nf6 4. Nc3 e6 5. Qc2 Bd6 6. b3 Nbd7 7. Bb2 a6 8. d4 b5 9. Bd3 Bb7 10. O-O O-O 11. c5 Bc7 12. Ne2 Re8 13. Ne5 Nxe5 14. dxe5 Ng4 15. h3 Nxe5 16. Bxh7+ Kh8 17. f4 Nd7 18. Bd3 f6 19. Bg6 Re7 20. Nd4 Nf8 21. Nf3 Nxg6 22. Qxg6 Qe8 23. Qg4 Rd8 24. Kh1 Bc8 25. Rf2 Kh7 26. Qh4+ Kg8 27. g4 e5 28. g5 g6 29. Rh2 Rh7 30. Qg3 exf4 31. exf4 Qe4 32. Re1 Qxf4 33. Qxf4 Bxf4 34. Rhe2 Rxh3+ 35. Kg2 Bg4 36. gxf6 Rg3+ 37. Kf2 Rxf3+ 38. Kg2 Rg3+ 39. Kf2 Bxe2 40. Rxe2 {[%emt 1:44:59]} Re3 {[%emt 1:44:22]} 0-1

[Event "Commonwealth CC-Open 2024"]
[Site "Malacca"]
[Date "2024.02.27"]
[Round "9.1"]
[White "Mitrabha, Guha"]
[Black "Rohith Krishna S"]
[Result "1-0"]
[ECO "A36"]
[WhiteElo "2504"]
[BlackElo "2410"]
[Annotator "ChessBase"]
[PlyCount "113"]
[EventDate "2024.02.21"]
[EventCountry "MAS"]
[SourceTitle "playchess.com"]
[Source "ChessBase"]
[SourceQuality "1"]
[TimeControl "5400+30"]

1. c4 Nf6 2. Nc3 c5 3. g3 Nc6 4. Bg2 g6 5. e3 Bg7 6. Nge2 O-O 7. d4 cxd4 8. exd4 d6 9. h3 a6 10. O-O Bd7 11. b3 Rc8 12. Be3 Na5 13. a4 Qb6 14. Nc1 h5 15. Re1 Rfe8 16. Ra2 Qb4 17. Bd2 Qb6 18. Bg5 Qb4 19. N3e2 e6 20. Bd2 Qb6 21. Bc3 Qc7 22. Qd2 b6 23. Rd1 Nb7 24. Nd3 d5 25. Ne5 dxc4 26. bxc4 Nd6 27. c5 bxc5 28. dxc5 Nde4 29. Bxe4 Nxe4 30. Qf4 Bc6 31. Rd7 Qxd7 32. Nxd7 Nxc3 33. Nxc3 Bxc3 34. Qe3 Bg7 35. Nb6 Rcd8 36. Rd2 Bf6 37. Rd6 Bb7 38. Qf4 Be7 39. Nd7 Bd5 40. Ne5 Rf8 41. Rxd8 Bxd8 42. Nd7 Re8 43. Qb8 Kg7 44. Qc8 Rh8 45. c6 Be7 46. Qb7 a5 47. Nb6 Bxc6 48. Qxc6 Bb4 49. Qc7 h4 50. g4 Re8 51. Nd7 e5 52. Nxe5 Re7 53. Qb8 Re6 54. Nf3 Re2 55. Qa7 Rc2 56. Ng5 Bc5 {[%emt 1:53:11]} 57. Ne6+ {[%emt 1:39:01]} 1-0

[Event "Commonwealth CC-Open 2024"]
[Site "Malacca"]
[Date "2024.02.27"]
[Round "9.2"]
[White "Tin, Jingyao"]
[Black "Vignesh N R"]
[Result "1/2-1/2"]
[ECO "E29"]
[WhiteElo "2563"]
[BlackElo "2517"]
[Annotator "ChessBase"]
[PlyCount "116"]
[EventDate "2024.02.21"]
[EventCountry "MAS"]
[SourceTitle "playchess.com"]
[Source "ChessBase"]
[SourceQuality "1"]
[TimeControl "5400+30"]

1. d4 Nf6 2. c4 e6 3. Nc3 Bb4 4. e3 O-O 5. a3 Bxc3+ 6. bxc3 c5 7. Bd3 Nc6 8. Rb1 b6 9. e4 Ne8 10. Nf3 Ba6 11. e5 f5 12. d5 Na5 13. d6 Bxc4 14. Bxc4 Nxc4 15. Qd3 Na5 16. c4 Qc8 17. Bd2 Nb7 18. O-O f4 19. Ng5 Rf5 20. Bxf4 Qd8 21. Qe4 h6 22. Nf3 Na5 23. g4 Rf7 24. Kg2 Qc8 25. Bd2 Qc6 26. Qxc6 Nxc6 27. Rfe1 Nxd6 28. exd6 Raf8 29. Rb3 Nd4 30. Ree3 Rf4 31. Nxd4 Rxf2+ 32. Kg3 cxd4 33. Red3 e5 34. h4 Re2 35. h5 Rff2 36. Bb4 Rg2+ 37. Kh4 Re4 38. Rg3 Rh2+ 39. Rh3 Rg2 40. Rhg3 Rh2+ 41. Rh3 Rc2 42. c5 bxc5 43. Ba5 c4 44. Rb7 d3 45. Rxd7 d2 46. Bxd2 Rxd2 47. Rf3 Rdd4 48. Rxa7 Rxg4+ 49. Kh3 Rgf4 50. Rxf4 exf4 51. Kg4 Rxd6 52. Rc7 Rd4 53. a4 c3 54. a5 Ra4 55. Rxc3 Rxa5 56. Rf3 Rg5+ 57. Kh4 Rf5 58. Kg4 {[%emt 1:54:12]} Rg5+ {[%emt 1:55:25]} 1/2-1/2

[Event "Commonwealth CC-Open 2024"]
[Site "Malacca"]
[Date "2024.02.27"]
[Round "9.3"]
[White "Das, Sayantan"]
[Black "Visakh N R"]
[Result "1/2-1/2"]
[ECO "B11"]
[WhiteElo "2514"]
[BlackElo "2549"]
[Annotator "ChessBase"]
[PlyCount "115"]
[EventDate "2024.02.21"]
[EventCountry "MAS"]
[SourceTitle "playchess.com"]
[Source "ChessBase"]
[SourceQuality "1"]
[TimeControl "5400+30"]

1. e4 c6 2. Nf3 d5 3. Nc3 Bg4 4. h3 Bxf3 5. Qxf3 e6 6. Be2 Nf6 7. O-O Be7 8. Rd1 d4 9. Nb1 O-O 10. d3 c5 11. h4 Nc6 12. h5 Kh8 13. Rf1 Rc8 14. Nd2 b5 15. Qg3 Ng8 16. a3 Qd7 17. f4 f5 18. e5 Nh6 19. Nf3 Ng4 20. Ng5 Bxg5 21. fxg5 c4 22. Bxg4 fxg4 23. Bf4 Qd5 24. Rae1 Rf5 25. Qxg4 Rcf8 26. Bg3 Kg8 27. g6 Rxf1+ 28. Rxf1 Rxf1+ 29. Kxf1 Ne7 30. gxh7+ Kxh7 31. Bf4 cxd3 32. cxd3 Qa2 33. Qe2 Nd5 34. Bg5 Ne3+ 35. Kf2 Qb1 36. Bxe3 dxe3+ 37. Kxe3 Qc1+ 38. Kf3 Qh1 39. Kg3 Kh8 40. d4 Qc1 41. Qf2 Kh7 42. Kh3 Qh1+ 43. Kg4 Qd1+ 44. Kg5 Qc1+ 45. Kh4 Qh1+ 46. Kg4 Qd1+ 47. Kg5 Qc1+ 48. Qf4 Qxb2 49. Qe4+ Kg8 50. Kg6 Qxa3 51. g4 Qf8 52. Qc6 Qf7+ 53. Kg5 b4 54. Qc8+ Kh7 55. Qc2+ Kg8 56. Qc8+ Kh7 57. Qc2+ Kg8 {[%emt 1:52:24]} 58. Qc8+ {[%emt 1:55:33]} 1/2-1/2

[Event "Commonwealth CC-Open 2024"]
[Site "Malacca"]
[Date "2024.02.27"]
[Round "9.4"]
[White "Lalit Babu M R"]
[Black "Deepan Chakkravarthy J."]
[Result "0-1"]
[ECO "E04"]
[WhiteElo "2525"]
[BlackElo "2422"]
[Annotator "ChessBase"]
[PlyCount "82"]
[EventDate "2024.02.21"]
[EventCountry "MAS"]
[SourceTitle "playchess.com"]
[Source "ChessBase"]
[SourceQuality "1"]
[TimeControl "5400+30"]

1. d4 Nf6 2. c4 e6 3. Nf3 d5 4. g3 dxc4 5. Bg2 Nc6 6. O-O a6 7. Nc3 Rb8 8. e4 Be7 9. d5 exd5 10. exd5 Nb4 11. Ne5 Bf5 12. Nxc4 Bd3 13. b3 Bxf1 14. Kxf1 a5 15. a3 Na6 16. Nxa5 O-O 17. b4 Ne8 18. Bd2 Nd6 19. Qc2 Bg5 20. Be1 Re8 21. Ne4 Nxe4 22. Bxe4 g6 23. Rd1 Bf6 24. d6 cxd6 25. Bxb7 Nc7 26. Nc6 Qd7 27. Nxb8 Qb5+ 28. Kg1 Qxb7 29. Nc6 Ne6 30. Qc4 Ng5 31. Qd5 Qa8 32. h4 Ne4 33. Na5 Qc8 34. Nc4 Bxh4 35. Kg2 Ng5 36. Nxd6 Qh3+ 37. Kg1 Re5 38. Qg2 Qg4 39. Rc1 Nf3+ 40. Kf1 Be7 41. Rc8+ {[%emt 1:40:01]} Qxc8 {[%emt 1:48:46]} 0-1

[Event "Commonwealth CC-Open 2024"]
[Site "Malacca"]
[Date "2024.02.27"]
[Round "9.5"]
[White "Swapnil, S. Dhopade"]
[Black "Laxman, R.R."]
[Result "1/2-1/2"]
[ECO "A14"]
[WhiteElo "2454"]
[BlackElo "2338"]
[Annotator "ChessBase"]
[PlyCount "75"]
[EventDate "2024.02.21"]
[EventCountry "MAS"]
[SourceTitle "playchess.com"]
[Source "ChessBase"]
[SourceQuality "1"]
[TimeControl "5400+30"]

1. Nf3 {[%emt 0:05:16]} d5 {[%emt 0:00:21]} 2. g3 {[%emt 0:01:49]} Nf6 {[%emt 0:01:26]} 3. Bg2 {[%emt 0:00:07]} c6 {[%emt 0:00:04]} 4. c4 {[%emt 0:00:08]} e6 {[%emt 0:00:17]} 5. b3 {[%emt 0:01:15]} Be7 {[%emt 0:00:29]} 6. O-O {[%emt 0:00:16]} O-O {[%emt 0:00:05]} 7. Bb2 {[%emt 0:00:02]} a5 {[%emt 0:00:10]} 8. Nc3 {[%emt 0:01:21]} b6 {[%emt 0:02:02]} 9. d3 {[%emt 0:06:21]} Nbd7 {[%emt 0:03:37]} 10. Qc2 {[%emt 0:01:29]} Ba6 {[%emt 0:00:42]} 11. e4 {[%emt 1:17:56]} Rc8 {[%emt 0:00:32]} 12. e5 {[%emt 0:00:00]} Ne8 {[%emt 0:00:22]} 13. Rfe1 {[%emt 0:00:00]} b5 {[%emt 0:00:14]} 14. Ne2 {[%emt 0:00:00]} Qb6 {[%emt 0:02:39]} 15. Rab1 {[%emt 0:00:00]} Nc7 {[%emt 0:00:58]} 16. Nf4 {[%emt 0:00:00]} Rfd8 {[%emt 0:00:27]} 17. h4 {[%emt 0:00:00]} Nf8 {[%emt 0:00:24]} 18. h5 {[%emt 0:00:00]} h6 {[%emt 0:00:17]} 19. g4 {[%emt 0:00:00]} Rd7 {[%emt 0:04:29]} 20. Bd4 {[%emt 0:00:00]} c5 {[%emt 0:09:48]} 21. Be3 {[%emt 0:00:00]} Rcd8 {[%emt 0:01:32]} 22. a4 {[%emt 0:00:00]} b4 {[%emt 0:01:52]} 23. Nh3 {[%emt 0:00:00]} Bb7 {[%emt 0:02:10]} 24. Rbd1 {[%emt 0:00:00]} dxc4 {[%emt 0:00:24]} 25. dxc4 {[%emt 0:00:00]} Be4 {[%emt 0:00:34]} 26. Qe2 {[%emt 0:00:00]} Qc6 {[%emt 0:01:44]} 27. Nf4 {[%emt 0:00:00]} Nh7 {[%emt 0:04:10]} 28. Bc1 {[%emt 0:00:21]} Rxd1 {[%emt 0:00:19]} 29. Rxd1 {[%emt 0:00:04]} Rxd1+ {[%emt 0:00:19]} 30. Qxd1 {[%emt 0:00:05]} Qa8 {[%emt 0:06:17]} 31. Qd7 {[%emt 0:04:39]} Bxf3 {[%emt 0:01:05]} 32. Qxe7 {[%emt 0:00:04]} Ng5 {[%emt 0:03:30]} 33. Qxc7 {[%emt 0:00:47]} Bxg2 {[%emt 0:00:02]} 34. Nxg2 {[%emt 0:00:05]} Nf3+ {[%emt 0:00:15]} 35. Kf1 {[%emt 0:01:29]} Nh2+ {[%emt 0:00:16]} 36. Kg1 {[%emt 0:00:29]} Nf3+ {[%emt 0:00:05]} 37. Kf1 {[%emt 0:00:02]} Nh2+ {[%emt 0:00:09]} 38. Kg1 {[%emt 0:03:22]} 1/2-1/2

[Event "Commonwealth CC-Open 2024"]
[Site "Malacca"]
[Date "2024.02.27"]
[Round "9.6"]
[White "Liu, Yi"]
[Black "Vaibhav, Suri"]
[Result "0-1"]
[ECO "D02"]
[WhiteElo "2260"]
[BlackElo "2596"]
[Annotator "TA"]
[PlyCount "74"]
[EventDate "2024.02.21"]
[EventCountry "MAS"]
[SourceTitle "playchess.com"]
[Source "ChessBase"]
[SourceQuality "1"]
[TimeControl "5400+30"]

{[%evp 11,74,0,23,22,27,13,20,18,7,7,11,4,22,0,17,0,0,0,0,-18,0,0,0,0,0,10,0,0,0,-131,-114,-112,-112,-118,-98,-193,-177,-213,-203,-216,-186,-183,-115,-212,-218,-223,-202,-425,-350,-339,-134,-320,-354,-359,-363,-349,-356,-341,-358,-351,-325,-364,-354,-385,-337]} 1. d4 Nf6 2. Nf3 e6 3. Bf4 d5 4. e3 c5 5. Nbd2 Nc6 6. c3 cxd4 7. exd4 Nh5 8. Be3 Bd6 {[#]} 9. Ne5 $1 {The position is equal.} Nf6 10. f4 Qb6 11. Qb3 Ng8 12. g3 Nge7 13. Bg2 f6 14. Nd3 h5 15. O-O Bd7 16. Nc5 Bxc5 17. dxc5 Qc7 18. Nf3 Nf5 {Prevents Nh4} 19. Bf2 h4 20. Nd4 (20. Nxh4 $11 Nxh4 21. gxh4) 20... hxg3 $17 21. hxg3 Ncxd4 22. cxd4 {[#]} O-O-O $1 {Hoping for ...g5. Black is more active.} 23. a4 (23. Rfe1 $17) 23... g5 $40 {[%mdl 128] Black wants a kill.} 24. fxg5 Rdg8 25. Rfd1 Rxg5 (25... fxg5 26. a5 $11) 26. Ra3 Be8 ({Better is} 26... Bc6 $19 {Strongly threatening ...Qh7.} 27. Rd3 Qh7) 27. a5 (27. Re1 $17) 27... a6 28. Qb6 Qh7 29. Qxe6+ $2 (29. c6 Bxc6 (29... Qh2+ 30. Kf1 $11) 30. Rc1) 29... Bd7 30. Qxd5 (30. Qxf6 Rg6 $19) 30... Qh2+ 31. Kf1 {[#] Loses the game.} Bb5+ $1 (31... Nxg3+ $2 32. Bxg3 Bb5+ 33. Kf2 Rxd5 34. Bxh2 Rxh2 35. Rh3 Rxh3 36. Bxh3+ (36. Bxd5 Bd7 $18) 36... Kc7 37. Be6 $18) (31... Ne3+ 32. Rxe3 Bb5+ 33. Ke1 Rxd5 34. Bxd5) 32. Ke1 Re8+ (32... Nxg3 $2 33. Qxb7+ Kd8 34. c6 $18 (34. Qb8+ Kd7 $18)) 33. Kd2 Bc6 (33... Nxg3 $2 {too greedy.} 34. Qxb7+ Kd8 35. Qb8+ Ke7 36. Re1+ (36. Bxg3 $2 {loses.} Qxg2+ 37. Kc1 Rxb8 $19) 36... Kf7 37. Qc7+ (37. Bxg3 $2 {perishes.} Qxg2+ 38. Kc1 Rxb8 $19) 37... Kf8 38. Rxe8+ (38. Bxg3 Qxg2+ 39. Kc1 Rxe1+ 40. Bxe1 Qe4 $11) (38. Rxg3 Rxe1 39. Bxe1 Rxg3 $18) 38... Bxe8 39. Qd6+ (39. Bxg3 $2 Qxg2+ 40. Kd1 Qg1+ 41. Kd2 Qxd4+ 42. Rd3 Qxb2+ 43. Ke3 Qc1+ 44. Kf2 Rf5+ $19) (39. Rxg3 Qxg2 40. Qd6+ Kg7 $18) 39... Kg7 40. Rxg3 $18 (40. Bxg3 Qxg2+ 41. Kc1 Qf1+ 42. Kd2 Qg2+ 43. Kc1 Qf1+ 44. Kd2 Rg4 $11)) (33... Re2+ 34. Kc1 Bc6 (34... Rxf2 $2 35. Qxb7+ Kd8 36. c6 $18) 35. Qc4 $11) 34. Rh1 Qxg2 35. Qxg2 Bxg2 36. Rg1 Bd5 37. g4 {[%emt 0:58:28]} Nh6 {[%emt 1:32:57] Weighted Error Value: White=0.36/Black=0.10 (very precise) .  Loses game:     	White=1     	---        Mistake:       	White=4     	Black=1      Inaccurate:     	---       	Black=1      OK:         	White=13    	Black=17     Best:        	White=3     	Black=3      Strong:       	---       	Black=2} 0-1